bitfinex-derivatives/quotes_SOLF0:USTF0_20250325
["timestamp","ask_amount","ask_price","bid_price","bid_amount"]
[1742917086439,6.896,145.0,144.98,33.0965]
[1742917086440,0.05081449,145.0,144.98,33.0965]
[1742917086752,0.05081449,145.0,144.98,26.25161056]
[1742917087748,0.05081449,145.0,144.99,6.8961]
[1742917088154,0.05081449,145.0,144.98,26.25161056]
[1742917088351,0.05081449,145.0,144.98,33.14801056]
[1742917089044,0.05081449,145.0,144.99,6.8961]
[1742917091451,0.05081449,145.0,144.99,26.18]
[1742917092245,6.94651449,145.0,144.99,26.18]
[1742917092449,6.94651449,145.0,144.98,0.05161056]
[1742917092450,0.05081449,145.0,144.98,0.05161056]
[1742917092652,0.05081449,145.0,144.98,1.056e-05]
[1742917092853,0.05081449,145.0,144.92,253.9]
[1742917093054,26.27081449,145.0,144.92,26.22]
[1742917093952,6.8988,144.94,144.92,26.22]
[1742917094147,26.22,145.0,144.92,0.04403818]
[1742917094455,0.04701757,144.94,144.92,0.04403818]
[1742917094757,6.899,144.93,144.92,0.04403818]
[1742917095349,6.899,144.93,144.92,3.818e-05]
[1742917095553,6.9023,144.86,144.85,227.6]
[1742917095848,13.7962,144.95,144.85,26.22]
[1742917096852,0.04908731,144.91,144.85,26.22]
[1742917098354,6.94938731,144.91,144.86,6.902]
[1742917098857,6.9007,144.9,144.86,6.902]
[1742917099264,0.04908731,144.91,144.87,6.9017]
[1742917099557,0.04908731,144.91,144.85,26.22]
[1742917099859,0.04908731,144.91,144.9,6.9004]
[1742917100558,0.04908731,144.91,144.89,33.1807]
[1742917100962,0.04908731,144.91,144.89,26.28]
[1742917102364,6.9009,144.89,144.8,13.8099]
[1742917102663,26.24,144.94,144.81,26.24]
[1742917102962,26.24,144.94,144.79,227.62]
[1742917103261,0.04572577,144.89,144.8,26.26]
[1742917103456,6.9012,144.89,144.86,6.9023]
[1742917103657,6.9012,144.89,144.86,33.1623]
[1742917103861,6.94559936,144.89,144.86,33.1623]
[1742917104964,6.94559936,144.89,144.86,26.26]
[1742917105259,6.9015,144.88,144.86,26.26]
[1742917105461,0.04439936,144.89,144.86,26.26]
[1742917106457,0.04439936,144.89,144.86,33.1621]
[1742917106662,0.04439936,144.89,144.86,26.26]
[1742917106862,6.9019,144.87,144.83,26.24]
[1742917107063,6.9019,144.87,144.84,6.903]
[1742917107362,0.05151485,144.86,144.84,6.903]
[1742917107565,0.05151485,144.86,144.79,227.62]
[1742917107763,0.05151485,144.86,144.84,6.903]
[1742917108965,0.05151485,144.86,144.85,6.9028]
[1742917109564,0.05151485,144.86,144.84,33.1431]
[1742917109864,0.05151485,144.86,144.84,26.24]
[1742917110061,27.94041195,144.99,144.84,33.14]
[1742917110261,6.8984,144.95,144.84,391.28595347]
[1742917110466,6.8984,144.95,144.84,391.24]
[1742917110663,6.8984,144.95,144.92,6.899]
[1742917110862,27.94041195,144.99,144.92,26.24]
[1742917111063,6.8971,144.97,144.92,26.24]
[1742917111258,0.05277355,144.97,144.94,0.04492449]
[1742917112367,6.94987355,144.97,144.94,0.04492449]
[1742917112568,0.05277355,144.97,144.94,0.04492449]
[1742917113267,6.95007355,144.97,144.94,0.04492449]
[1742917113767,6.95007355,144.97,144.95,26.22]
[1742917114169,6.8976,144.96,144.95,26.22]
[1742917115267,6.8981,144.95,144.94,0.04492449]
[1742917116566,0.05277355,144.97,144.9,26.18]
[1742917116773,13.7928,144.99,144.9,26.18]
[1742917117271,6.9,144.91,144.9,26.18]
[1742917118064,0.04986732,144.92,144.88,227.72]
[1742917118466,0.04986732,144.92,144.86,26.16]
[1742917118773,6.9013,144.89,144.86,26.16]
[1742917119071,0.04751839,144.9,144.86,26.16]
[1742917119668,0.04751839,144.9,144.86,33.0623]
[1742917119862,0.04751839,144.9,144.86,26.16]
[1742917120062,6.9012,144.89,144.86,33.062]
[1742917120262,0.04751839,144.9,144.86,26.16]
[1742917121582,6.94801839,144.9,144.87,6.9016]
[1742917121886,0.04751839,144.9,144.86,26.16]
[1742917122274,0.04751839,144.9,144.88,6.901]
[1742917122578,0.04751839,144.9,144.86,26.16]
[1742917122776,6.9012,144.89,144.86,26.16]
[1742917122976,0.04751839,144.9,144.86,26.16]
[1742917123173,0.04751839,144.9,144.89,6.9009]
[1742917123373,0.04751839,144.9,144.86,26.18]
[1742917124081,6.9015,144.88,144.86,26.18]
[1742917124478,6.9017,144.88,144.86,26.18]
[1742917124983,0.04751839,144.9,144.89,6.9009]
[1742917130394,0.04751839,144.9,144.89,13.8009]
[1742917131694,1.839e-05,144.9,144.89,13.8009]
[1742917131996,27.94041195,145.02,144.95,6.898]
[1742917132195,27.94041195,145.02,144.96,26.14]
[1742917132594,27.94041195,145.02,144.98,6.8966]
[1742917132894,27.94041195,145.02,144.96,26.14]
[1742917133195,0.04801647,145.0,144.98,6.94207264]
[1742917134492,6.94371647,145.0,144.98,0.04587264]
[1742917135501,0.04801647,145.0,144.98,6.94247264]
[1742917136395,0.04801647,145.0,144.99,6.8961]
[1742917138201,0.04801647,145.0,144.98,0.04587264]
[1742917140901,0.04801647,145.0,144.98,6.94247264]
[1742917141603,0.04801647,145.0,144.99,6.8961]
[1742917142201,0.04801647,145.0,144.98,6.94237264]
[1742917142400,0.04801647,145.0,144.98,0.04587264]
[1742917142702,0.04801647,145.0,144.99,6.8961]
[1742917146303,0.04801647,145.0,144.99,234.4561]
[1742917146503,1.647e-05,145.0,144.99,234.4561]
[1742917146903,1.647e-05,145.0,144.99,241.3561]
[1742917147702,6.8916,145.09,145.06,6.8926]
[1742917147903,6.8916,145.09,145.07,26.08]
[1742917148104,6.8919,145.08,145.07,26.08]
[1742917148505,26.08,145.14,145.04,26.06]
[1742917148904,0.04492548,145.1,145.08,0.05181335]
[1742917149614,6.8914,145.09,145.08,0.05181335]
[1742917160616,0.04492548,145.1,145.04,26.0]
[1742917160812,26.08,145.14,145.04,32.8934]
[1742917161012,6.8922,145.08,145.04,26.0]
[1742917161212,13.7792,145.13,145.04,26.0]
[1742917161711,6.8933,145.05,145.04,26.0]
[1742917163513,6.8938,145.04,145.03,0.04777382]
[1742917163710,0.04873653,145.06,145.03,26.04777382]
[1742917164317,6.8938,145.04,145.03,26.04777382]
[1742917164917,6.8938,145.04,145.03,0.04777382]
[1742917167117,0.04873653,145.06,145.03,0.04777382]
[1742917167618,6.94163653,145.06,145.04,6.8936]
[1742917168221,6.8933,145.05,145.03,6.94177382]
[1742917168415,0.04873653,145.06,145.03,0.04777382]
[1742917168925,6.8938,145.04,145.03,0.04777382]
[1742917170011,6.8935,145.05,145.03,0.04777382]
[1742917170222,0.04873653,145.06,145.03,0.04777382]
[1742917170523,6.8938,145.04,145.03,25.98777382]
[1742917172218,6.8938,145.04,145.03,0.04777382]
[1742917173016,0.04873653,145.06,145.04,6.8935]
[1742917173520,6.94173653,145.06,145.04,6.8935]
[1742917173718,0.04873653,145.06,145.05,25.94]
[1742917174222,0.04873653,145.06,145.05,32.8333]
[1742917176223,0.04873653,145.06,145.05,25.94]
[1742917176926,0.04873653,145.06,145.05,32.8333]
[1742917177527,0.04873653,145.06,145.05,25.94]
[1742917177821,0.04873653,145.06,145.05,32.8333]
[1742917180724,0.04873653,145.06,145.04,6.8937]
[1742917181024,0.04873653,145.06,145.05,25.86]
[1742917182029,0.04873653,145.06,145.03,25.92777382]
[1742917182723,0.04873653,145.06,145.05,6.8933]
[1742917188537,0.04873653,145.06,145.04,6.8936]
[1742917188831,0.04873653,145.06,145.03,25.92777382]
[1742917189433,0.04873653,145.06,145.05,6.8933]
[1742917191234,0.04873653,145.06,145.05,32.6733]
[1742917191732,0.04873653,145.06,145.05,25.78]
[1742917193428,0.04873653,145.06,145.05,32.6733]
[1742917194132,0.04873653,145.06,145.05,25.78]
[1742917195036,0.04873653,145.06,145.05,32.6733]
[1742917195238,0.04873653,145.06,145.05,25.78]
[1742917195736,6.94153653,145.06,145.05,25.78]
[1742917196133,0.04873653,145.06,145.05,25.78]
[1742917196334,0.04873653,145.06,145.04,6.8935]
[1742917196640,0.04873653,145.06,145.04,25.7]
[1742917197336,0.04873653,145.06,145.03,0.04777382]
[1742917197532,6.94153653,145.06,145.04,25.72]
[1742917198335,0.04873653,145.06,145.05,6.8933]
[1742917199633,0.04873653,145.06,145.04,32.6135]
[1742917199834,0.04873653,145.06,145.04,25.72]
[1742917201538,0.04873653,145.06,145.05,6.8933]
[1742917202038,27.94041195,145.13,145.1,6.8908]
[1742917202243,27.94041195,145.13,145.08,25.7]
[1742917202441,27.94041195,145.13,145.09,25.72]
[1742917202944,6.8909,145.1,145.09,25.72]
[1742917203538,6.8914,145.09,145.08,0.04627081]
[1742917203738,0.04961727,145.11,145.08,0.04627081]
[1742917204739,0.04961727,145.11,145.1,6.8909]
[1742917204945,0.04961727,145.11,145.1,32.5909]
[1742917205438,0.04961727,145.11,145.1,25.7]
[1742917206545,0.04961727,145.11,145.1,32.5909]
[1742917207043,0.04961727,145.11,145.1,25.7]
[1742917207442,6.94001727,145.11,145.1,25.7]
[1742917207648,0.04961727,145.11,145.08,0.04627081]
[1742917208037,0.04961727,145.11,145.1,6.8909]
[1742917210350,0.04961727,145.11,145.09,6.8912]
[1742917210650,0.04961727,145.11,145.08,0.04627081]
[1742917210846,0.04961727,145.11,145.09,6.891]
[1742917211150,0.04961727,145.11,145.08,0.04627081]
[1742917211649,0.04961727,145.11,145.1,6.8909]
[1742917216246,27.94041195,145.2,145.15,6.8882]
[1742917216648,27.94041195,145.21,145.14,25.7]
[1742917217346,6.8877,145.17,145.14,32.5887]
[1742917217553,6.8877,145.17,145.16,0.05103071]
[1742917217847,0.04912778,145.19,145.16,0.05103071]
[1742917219151,0.04912778,145.19,145.18,6.8871]
[1742917219350,0.04912778,145.19,145.18,32.5871]
[1742917224857,0.04912778,145.19,145.16,0.05103071]
[1742917225057,6.8876,145.17,145.16,0.05103071]
[1742917225462,0.04912778,145.19,145.16,0.05103071]
[1742917225757,6.8876,145.17,145.16,0.05103071]
[1742917226157,0.04912778,145.19,145.16,0.05103071]
[1742917226660,6.93582778,145.19,145.16,6.93883071]
[1742917227665,0.04912778,145.19,145.16,0.05103071]
[1742917228757,0.04912778,145.19,145.17,6.8875]
[1742917228963,0.04912778,145.19,145.16,0.05103071]
[1742917230460,0.04912778,145.19,145.17,6.8873]
[1742917231266,0.04912778,145.19,145.18,6.8871]
[1742917232162,0.04912778,145.19,145.16,0.05103071]
[1742917232668,6.8874,145.18,145.16,0.05103071]
[1742917232868,6.8874,145.18,145.16,6.93893071]
[1742917233071,0.04912778,145.19,145.16,6.93893071]
[1742917233266,6.93602778,145.19,145.16,0.05103071]
[1742917233468,6.93602778,145.19,145.17,6.8874]
[1742917234074,0.04912778,145.19,145.17,6.8874]
[1742917234571,0.04912778,145.19,145.18,6.8871]
[1742917234766,0.04912778,145.19,145.18,32.4671]
[1742917240175,0.04912778,145.19,145.18,25.58]
[1742917240476,0.04912778,145.19,145.16,25.55103071]
[1742917240668,6.8871,145.18,145.16,25.55103071]
[1742917240870,0.04912778,145.19,145.16,25.55103071]
[1742917241268,0.04912778,145.19,145.16,32.43893071]
[1742917241474,0.04912778,145.19,145.16,0.05103071]
[1742917241976,6.8876,145.17,145.16,0.05103071]
[1742917242172,0.04912778,145.19,145.16,0.05103071]
[1742917242378,0.04912778,145.19,145.17,6.8872]
[1742917242875,0.04912778,145.19,145.16,0.05103071]
[1742917243182,0.04912778,145.19,145.18,6.8871]
[1742917243476,0.04912778,145.19,145.18,32.3871]
[1742917244375,27.94041195,145.27,145.18,25.5]
[1742917244776,27.94041195,145.27,145.23,6.8843]
[1742917245277,6.8836,145.26,145.23,6.8843]
[1742917245478,6.8836,145.26,145.24,0.04982126]
[1742917245479,6.93249593,145.26,145.24,0.04982126]
[1742917246080,0.04889593,145.26,145.24,6.93372126]
[1742917247182,6.93249593,145.26,145.24,0.04982126]
[1742917247479,0.04889593,145.26,145.24,0.04982126]
[1742917248384,6.92889593,145.26,145.19,25.48]
[1742917248587,25.48,145.26,145.18,25.48]
[1742917249082,25.46,145.29,145.18,25.48]
[1742917249275,25.46,145.29,145.21,6.8855]
[1742917249482,0.04684779,145.25,145.22,0.04781395]
[1742917251080,6.8846,145.24,145.22,0.04781395]
[1742917251381,0.04684779,145.25,145.22,0.04781395]
[1742917251580,6.8843,145.24,145.22,6.93291395]
[1742917251884,6.8843,145.24,145.22,0.04781395]
[1742917252085,0.04684779,145.25,145.22,0.04781395]
[1742917252086,0.04684779,145.25,145.22,32.39281395]
[1742917252287,0.04684779,145.25,145.22,25.50781395]
[1742917252584,6.93084779,145.25,145.22,32.39271395]
[1742917254188,0.04684779,145.25,145.22,25.50781395]
[1742917254682,6.8848,145.23,145.22,25.50781395]
[1742917255683,0.04684779,145.25,145.22,25.50781395]
[1742917256081,0.04684779,145.25,145.22,0.04781395]
[1742917256385,0.04684779,145.25,145.18,25.5]
[1742917256583,25.52,145.28,145.18,25.5]
[1742917257588,6.8857,145.21,145.19,6.8865]
[1742917257777,0.04555501,145.24,145.18,25.5]
[1742917257978,6.8862,145.2,145.19,0.04800987]
[1742917258177,0.05260935,145.21,145.19,0.04800987]
[1742917258388,13.7663,145.27,145.19,0.04800987]
[1742917258589,6.93038887,145.21,145.19,0.04800987]
[1742917258785,13.7663,145.27,145.19,0.04800987]
[1742917259089,25.52,145.28,145.19,0.04800987]
[1742917259292,0.0442623,145.24,145.18,25.5]
[1742917259485,0.0442623,145.24,145.22,0.04606691]
[1742917259684,0.0442623,145.24,145.22,6.93096691]
[1742917260086,0.0442623,145.24,145.22,0.04606691]
[1742917260486,25.5,145.23,145.22,6.691e-05]
[1742917260692,25.5,145.23,145.15,25.5]
[1742917260888,25.5,145.23,145.14,6.8888]
[1742917261285,6.8878,145.17,145.14,6.8888]
[1742917261690,25.5,145.23,145.12,252.88]
[1742917261888,0.05225673,145.17,145.14,0.04421348]
[1742917262089,25.5,145.23,145.17,6.8875]
[1742917262287,25.5,145.23,145.12,252.88]
[1742917262288,0.05148256,145.17,145.16,25.52]
[1742917262490,25.5,145.23,145.16,25.52]
[1742917262693,0.04844481,145.18,145.17,6.8872]
[1742917262992,0.04578858,145.19,145.17,6.8872]
[1742917264290,0.04578858,145.19,145.18,6.8871]
[1742917264893,0.04578858,145.19,145.17,6.8874]
[1742917265189,0.04578858,145.19,145.16,25.56576749]
[1742917265593,0.04578858,145.19,145.18,6.8871]
[1742917265789,0.04578858,145.19,145.16,25.56576749]
[1742917266891,6.8876,145.17,145.16,25.56576749]
[1742917267297,6.8876,145.17,145.16,0.04576749]
[1742917270197,6.8876,145.17,145.16,6.749e-05]
[1742917270698,6.88,145.17,145.1,25.44]
[1742917270891,25.44,145.18,145.1,25.44]
[1742917271600,25.44,145.21,145.1,25.44]
[1742917271789,0.04531438,145.15,145.1,25.44]
[1742917271992,25.44,145.23,145.1,25.44]
[1742917272194,0.04537662,145.14,145.1,25.44]
[1742917272396,27.94041195,145.2,145.13,6.8892]
[1742917272590,27.94041195,145.2,145.14,25.46]
[1742917272797,6.8876,145.17,145.14,32.3486]
[1742917273899,0.05274756,145.18,145.14,25.46]
[1742917274091,0.05274756,145.18,145.11,25.46]
[1742917274298,25.46,145.18,145.11,25.46]
[1742917274599,6.8898,145.13,145.11,25.46]
[1742917274901,0.04611005,145.16,145.11,25.46]
[1742917275094,6.89,145.12,145.11,25.46]
[1742917275289,25.46,145.18,145.11,25.46]
[1742917275599,13.7753,145.17,145.06,227.26]
[1742917275800,0.0455124,145.16,145.07,25.44]
[1742917275989,0.0455124,145.16,145.06,227.26]
[1742917275990,6.8923,145.07,145.06,227.26]
[1742917276195,25.504517,145.13,145.05,25.46]
[1742917276397,0.04390545,145.1,145.03,6.8938]
[1742917276694,6.8931,145.06,145.03,6.8938]
[1742917277096,6.93782547,145.06,145.03,6.8938]
[1742917277297,0.04472547,145.06,145.01,25.46]
[1742917277903,6.8935,145.05,145.02,6.8946]
[1742917278108,0.04472547,145.06,145.01,25.46]
[1742917278402,0.04472547,145.06,145.0,252.78]
[1742917278795,0.04472547,145.06,145.03,6.894]
[1742917278993,0.04472547,145.06,145.04,25.48]
[1742917279199,11.28407655,145.16,145.04,25.48]
[1742917279406,53.44041195,145.2,145.11,6.8903]
[1742917279610,27.94041195,145.14,145.12,25.52]
[1742917279803,27.94041195,145.14,145.12,25.54]
[1742917280302,27.99232682,145.14,145.12,25.59090241]
[1742917280505,34.89232682,145.14,145.0,252.88]
[1742917280705,27.94041195,145.14,145.0,252.88]
[1742917281597,0.04644562,145.08,145.0,252.88]
[1742917282400,0.04644562,145.08,145.0,252.94]
[1742917283208,6.8943,145.03,144.95,365.0]
[1742917283401,25.62,145.07,144.96,25.62]
[1742917283605,0.04507189,145.0,144.96,25.62]
[1742917283908,6.8949,145.02,144.99,6.8961]
[1742917284102,6.8949,145.02,145.0,25.62]
[1742917284309,6.94768983,145.02,145.0,25.62]
[1742917284604,0.05278983,145.02,145.01,6.8952]
[1742917284999,0.05278983,145.02,145.0,32.5155]
[1742917285315,0.05278983,145.02,145.0,25.62]
[1742917285703,0.05278983,145.02,145.01,6.8952]
[1742917288107,6.94748983,145.02,145.0,25.58]
[1742917288711,6.8952,145.01,145.0,25.58]
[1742917289010,0.05278983,145.02,144.95,592.42]
[1742917289206,0.05278983,145.02,144.96,25.56]
[1742917289812,6.8954,145.01,144.96,32.4573]
[1742917290314,0.05278983,145.02,144.97,6.8968]
[1742917291108,0.05278983,145.02,144.98,6.8965]
[1742917291813,0.05278983,145.02,144.97,6.897]
[1742917292013,0.05278983,145.02,144.96,25.56]
[1742917292214,0.05278983,145.02,144.95,592.42]
[1742917292411,0.05278983,145.02,144.96,25.54]
[1742917292612,6.8966,144.99,144.96,25.54]
[1742917292814,25.54,145.06,144.95,227.42]
[1742917293012,0.05254214,144.99,144.96,25.56]
[1742917293215,25.54,145.06,144.96,25.56]
[1742917293816,0.04890592,145.02,144.96,25.56]
[1742917294215,6.8964,144.99,144.96,25.56]
[1742917294418,25.54,145.06,144.95,227.42]
[1742917294608,0.05002615,144.99,144.96,25.54]
[1742917294813,25.54,145.06,144.96,25.54]
[1742917295008,0.04426803,144.99,144.96,25.54]
[1742917295213,0.0500272,144.99,144.96,25.54]
[1742917295410,6.897,144.98,144.96,25.54]
[1742917296115,6.8971,144.97,144.96,25.54]
[1742917296817,6.8976,144.96,144.95,252.94]
[1742917297117,0.0500272,144.99,144.95,259.838]
[1742917297317,0.0500272,144.99,144.95,252.94]
[1742917297713,0.0500272,144.99,144.95,259.8378]
[1742917297915,6.8969,144.98,144.95,252.94]
[1742917298213,0.0500272,144.99,144.95,252.94]
[1742917298519,6.9463272,144.99,144.95,234.3178]
[1742917298815,6.9463272,144.99,144.95,259.8178]
[1742917299214,0.0500272,144.99,144.95,259.8178]
[1742917299413,0.0500272,144.99,144.95,252.92]
[1742917299614,6.8979,144.96,144.9,365.0]
[1742917299816,6.8979,144.96,144.91,25.5]
[1742917300016,0.04375663,144.94,144.93,6.8989]
[1742917300815,0.04375663,144.94,144.91,25.5]
[1742917301017,0.04375663,144.94,144.92,25.48]
[1742917301315,6.94275663,144.94,144.92,25.48]
[1742917302111,0.04375663,144.94,144.92,25.48]
[1742917303217,0.04375663,144.94,144.93,6.899]
[1742917304315,13.7859,145.06,144.97,6.8967]
[1742917304616,25.46,145.05,144.97,25.46]
[1742917304816,6.8961,145.0,144.97,25.46]
[1742917305008,25.46,145.05,144.97,32.3568]
[1742917305519,6.896,145.0,144.97,32.3568]
[1742917305913,6.896,145.0,144.98,6.8966]
[1742917306122,0.04898957,145.02,144.97,25.50613536]
[1742917306418,25.48,145.01,144.97,0.04613536]
[1742917306823,6.8966,144.98,144.97,0.04613536]
[1742917308717,6.9454573,144.99,144.97,0.04613536]
[1742917309720,0.0492573,144.99,144.97,25.48613536]
[1742917311018,0.0492573,144.99,144.89,592.52]
[1742917311220,25.44,145.03,144.91,25.44]
[1742917311615,6.8967,144.98,144.91,25.44]
[1742917312019,25.44,145.03,144.91,25.44]
[1742917312223,0.04467453,144.96,144.91,25.44]
[1742917313716,0.04467453,144.96,144.94,6.8985]
[1742917314021,6.94227453,144.96,144.95,25.52]
[1742917316423,0.04467453,144.96,144.95,25.52]
[1742917317423,88.29901358,145.08,144.95,25.52]
[1742917317818,6.8955,145.01,144.98,6.8965]
[1742917318019,6.8955,145.01,144.99,25.48]
[1742917318319,27.94301759,145.06,144.99,25.48]
[1742917318629,6.895,145.02,144.99,32.3759]
[1742917318817,6.895,145.02,145.01,0.04467453]
[1742917319721,0.045801,145.04,145.01,0.04467453]
[1742917321231,6.8947,145.02,145.01,0.04467453]
[1742917322630,0.045801,145.04,145.01,0.04467453]
[1742917323627,0.045801,145.04,145.03,6.8942]
[1742917323833,0.045801,145.04,145.03,32.3142]
[1742917325330,1e-06,145.04,145.03,32.3142]
[1742917325531,27.94301759,145.1,145.09,6.8914]
[1742917325830,27.94301759,145.1,145.09,32.2914]
[1742917327434,0.04738751,145.11,145.1,6.8909]
[1742917332141,0.04738751,145.11,145.08,0.04999187]
[1742917332740,0.04738751,145.11,145.09,6.8911]
[1742917332940,0.04738751,145.11,145.08,0.04999187]
[1742917333340,0.04738751,145.11,145.09,6.8911]
[1742917334643,0.04738751,145.11,145.08,0.04999187]
[1742917334939,0.04738751,145.11,145.1,6.8909]
[1742917338045,0.04738751,145.11,145.08,0.04999187]
[1742917338648,6.8914,145.09,145.08,0.04999187]
[1742917339843,6.8911,145.1,145.08,0.04999187]
[1742917340049,0.04738751,145.11,145.08,0.04999187]
[1742917340549,6.93798751,145.11,145.08,6.94149187]
[1742917340752,6.93798751,145.11,145.08,0.04999187]
[1742917341449,0.04738751,145.11,145.08,0.04999187]
[1742917342152,6.8914,145.09,145.08,0.04999187]
[1742917342354,0.04738751,145.11,145.08,0.04999187]
[1742917342656,6.8911,145.1,145.08,0.04999187]
[1742917342952,0.04738751,145.11,145.08,0.04999187]
[1742917343353,6.8914,145.09,145.08,0.04999187]
[1742917344349,6.8912,145.1,145.08,0.04999187]
[1742917344952,6.8914,145.09,145.08,0.04999187]
[1742917350151,6.8914,145.09,145.08,9.187e-05]
[1742917372277,6.8912,145.1,145.08,9.187e-05]
[1742917372486,0.04738751,145.11,145.08,9.187e-05]
[1742917372987,6.8914,145.09,145.08,9.187e-05]
[1742917377986,6.8911,145.1,145.08,9.187e-05]
[1742917378487,0.04738751,145.11,145.08,9.187e-05]
[1742917378685,6.8914,145.09,145.08,9.187e-05]
[1742917379089,6.8912,145.1,145.08,9.187e-05]
[1742917379687,0.04738751,145.11,145.09,25.26]
[1742917380290,0.04738751,145.11,145.1,6.8909]
[1742917380787,102.45773117,145.14,145.13,6.8895]
[1742917380986,102.45773117,145.14,145.13,32.1495]
[1742917381185,27.94301759,145.16,145.13,25.26]
[1742917381878,27.94301759,145.16,145.15,6.8885]
[1742917382081,27.98935686,145.16,145.15,6.8885]
[1742917384292,0.04633927,145.16,145.15,6.8885]
[1742917385794,3.927e-05,145.16,145.15,6.8885]
[1742917385994,27.94301759,145.23,145.22,6.8852]
[1742917386194,27.94301759,145.23,145.22,32.1452]
[1742917386792,27.94301759,145.23,145.22,25.26]
[1742917387097,27.94301759,145.23,145.21,32.19019664]
[1742917387293,27.94301759,145.23,145.21,25.30469664]
[1742917387497,27.98648884,145.24,145.21,25.30469664]
[1742917388701,6.8848,145.23,145.21,25.30469664]
[1742917389299,34.87098884,145.24,145.21,32.19039664]
[1742917389706,6.8852,145.23,145.21,25.30469664]
[1742917390107,27.98648884,145.24,145.21,25.30469664]
[1742917390508,0.04347125,145.24,145.21,25.30469664]
[1742917390907,6.92807125,145.24,145.21,32.19009664]
[1742917393106,0.04347125,145.24,145.22,6.8851]
[1742917393411,0.04347125,145.24,145.21,25.30469664]
[1742917393608,0.04347125,145.24,145.23,6.8848]
[1742917394405,0.04347125,145.24,145.22,6.8851]
[1742917394806,0.04347125,145.24,145.21,25.30469664]
[1742917395606,0.04347125,145.24,145.22,6.8848]
[1742917395805,0.04347125,145.24,145.21,25.30469664]
[1742917396304,0.04347125,145.24,145.23,6.8848]
[1742917398808,0.04347125,145.24,145.22,6.8852]
[1742917399013,0.04347125,145.24,145.21,25.30469664]
[1742917399209,0.04347125,145.24,145.22,6.885]
[1742917399608,0.04347125,145.24,145.21,0.04469664]
[1742917399812,6.92807125,145.24,145.21,32.17019664]
[1742917400006,6.92807125,145.24,145.21,25.28469664]
[1742917400708,0.04347125,145.24,145.22,6.8849]
[1742917400907,0.04347125,145.24,145.21,25.28469664]
[1742917401110,0.04347125,145.24,145.22,6.8852]
[1742917401813,0.04347125,145.24,145.23,6.8848]
[1742917402515,0.04347125,145.24,145.21,25.28469664]
[1742917403111,0.04347125,145.24,145.22,6.885]
[1742917403613,0.04347125,145.24,145.23,6.8848]
[1742917404016,6.92777125,145.24,145.21,25.28469664]
[1742917404202,0.04347125,145.24,145.22,6.885]
[1742917405613,6.92787125,145.24,145.22,6.885]
[1742917405910,0.04347125,145.24,145.21,25.28469664]
[1742917406609,0.04347125,145.24,145.21,32.17029664]
[1742917406610,6.885,145.23,145.21,32.17029664]
[1742917407218,0.04347125,145.24,145.21,25.28469664]
[1742917407631,0.04347125,145.24,145.23,6.8848]
[1742917408218,0.04347125,145.24,145.21,25.28469664]
[1742917408417,0.04347125,145.24,145.22,6.8849]
[1742917408810,6.92787125,145.24,145.21,32.17009664]
[1742917409213,6.92787125,145.24,145.21,25.28469664]
[1742917409413,0.04347125,145.24,145.22,6.8849]
[1742917410218,0.04347125,145.24,145.21,25.28469664]
[1742917410716,0.04347125,145.24,145.22,6.8852]
[1742917411117,0.04347125,145.24,145.21,25.28469664]
[1742917411313,0.04347125,145.24,145.23,6.8848]
[1742917416418,6.8811,145.31,145.29,6.8816]
[1742917416922,6.8811,145.31,145.28,6.8822]
[1742917417222,6.8811,145.31,145.27,25.24]
[1742917417423,6.8815,145.3,145.27,25.24]
[1742917417721,6.92821593,145.3,145.28,6.93008478]
[1742917417910,0.04671593,145.3,145.28,0.04798478]
[1742917418114,0.04671593,145.3,145.29,6.8819]
[1742917419322,6.92811593,145.3,145.28,6.93028478]
[1742917419516,0.04671593,145.3,145.28,6.93028478]
[1742917419717,0.04671593,145.3,145.28,0.04798478]
[1742917420616,0.04671593,145.3,145.29,6.8819]
[1742917426930,0.04671593,145.3,145.28,6.92998478]
[1742917427930,0.04671593,145.3,145.29,6.8819]